[Event "Late-Titled-Tuesday-Blitz-March-19-2024"]
[Site "Chess.com"]
[Date "2024.03.19"]
[Round "11"]
[White "LangesNasenhaar"]
[Black "nindjaxx8"]
[Result "1-0"]
[WhiteElo "2556"]
[BlackElo "2648"]
[TimeControl "180+1"]
[EndTime "16:06:23 PDT"]
[Termination "LangesNasenhaar won by resignation"]

1. d4 {[%clk 0:03:00.9]} 1... d5 {[%clk 0:02:59.9]} 2. Nf3 {[%clk 0:03:01.5]}
2... Nf6 {[%clk 0:02:58.6]} 3. g3 {[%clk 0:03:01.7]} 3... Bf5 {[%clk 0:02:58.1]}
4. Nh4 {[%clk 0:03:01.9]} 4... Bg6 {[%clk 0:02:57.7]} 5. Bg2 {[%clk 0:03:00.7]}
5... e6 {[%clk 0:02:58]} 6. c4 {[%clk 0:02:59]} 6... Be7 {[%clk 0:02:57.6]} 7.
Nc3 {[%clk 0:02:55.9]} 7... c6 {[%clk 0:02:57.1]} 8. O-O {[%clk 0:02:48.6]} 8...
O-O {[%clk 0:02:56.3]} 9. Nxg6 {[%clk 0:02:48.6]} 9... hxg6 {[%clk 0:02:55.8]}
10. b3 {[%clk 0:02:44.9]} 10... b6 {[%clk 0:02:53.2]} 11. a4 {[%clk 0:02:40.2]}
11... Nbd7 {[%clk 0:02:48.1]} 12. e4 {[%clk 0:02:40.3]} 12... Bb4 {[%clk
0:02:42.4]} 13. Na2 {[%clk 0:02:31]} 13... Be7 {[%clk 0:02:34.6]} 14. e5 {[%clk
0:02:21.6]} 14... Ne8 {[%clk 0:02:34.4]} 15. cxd5 {[%clk 0:02:18.9]} 15... cxd5
{[%clk 0:02:33.5]} 16. Nc3 {[%clk 0:02:13.3]} 16... Nc7 {[%clk 0:02:30.8]} 17.
Qd3 {[%clk 0:02:11.3]} 17... Bb4 {[%clk 0:02:28.3]} 18. Nb5 {[%clk 0:02:09.1]}
18... Nxb5 {[%clk 0:02:27.3]} 19. axb5 {[%clk 0:02:08.6]} 19... Qe7 {[%clk
0:02:22.5]} 20. h4 {[%clk 0:02:06.1]} 20... Rfc8 {[%clk 0:02:14.4]} 21. Bg5
{[%clk 0:02:02.5]} 21... Qf8 {[%clk 0:02:12.2]} 22. Rfc1 {[%clk 0:01:58.3]}
22... Ba3 {[%clk 0:02:05.2]} 23. Rc6 {[%clk 0:01:49.6]} 23... a5 {[%clk
0:01:43.9]} 24. Ra2 {[%clk 0:01:34]} 24... Bb4 {[%clk 0:01:00.2]} 25. Rac2
{[%clk 0:01:32.8]} 25... Qe8 {[%clk 0:00:57.7]} 26. Qd1 {[%clk 0:01:21.4]} 26...
Nf8 {[%clk 0:00:48.9]} 27. Qc1 {[%clk 0:01:14.5]} 27... Rxc6 {[%clk 0:00:43.8]}
28. bxc6 {[%clk 0:01:09.9]} 28... Rc8 {[%clk 0:00:43.2]} 29. c7 {[%clk
0:01:06.8]} 29... Qd7 {[%clk 0:00:12.9]} 30. Bf1 {[%clk 0:01:05.3]} 30... b5
{[%clk 0:00:12.9]} 31. Rc6 {[%clk 0:00:58.1]} 31... a4 {[%clk 0:00:07.6]} 32.
Bxb5 {[%clk 0:00:50.5]} 32... Ba5 {[%clk 0:00:08.2]} 33. bxa4 {[%clk 0:00:47.7]}
33... Rxc7 {[%clk 0:00:07.3]} 34. Rxc7 {[%clk 0:00:39.9]} 34... Qxc7 {[%clk
0:00:08.2]} 35. Qxc7 {[%clk 0:00:36.9]} 35... Bxc7 {[%clk 0:00:09.1]} 36. Bd2
{[%clk 0:00:36.5]} 36... f6 {[%clk 0:00:06.2]} 37. f4 {[%clk 0:00:35.5]} 37...
Nh7 {[%clk 0:00:02.9]} 38. Kf2 {[%clk 0:00:30.5]} 38... Kf7 {[%clk 0:00:02.8]}
39. a5 {[%clk 0:00:30.4]} 39... Bb8 {[%clk 0:00:02.3]} 40. Bb4 {[%clk
0:00:29.1]} 40... g5 {[%clk 0:00:01.7]} 41. Bc5 {[%clk 0:00:26]} 41... gxh4
{[%clk 0:00:01.7]} 42. gxh4 {[%clk 0:00:26.1]} 42... fxe5 {[%clk 0:00:02.4]} 43.
fxe5 {[%clk 0:00:26]} 43... Nf8 {[%clk 0:00:02.9]} 44. a6 {[%clk 0:00:25.5]}
44... Ng6 {[%clk 0:00:03.4]} 45. Kg3 {[%clk 0:00:23.1]} 45... Ne7 {[%clk
0:00:03.1]} 46. a7 {[%clk 0:00:20.6]} 46... Nf5+ {[%clk 0:00:02]} 47. Kh3 {[%clk
0:00:19.3]} 47... Bxa7 {[%clk 0:00:02.9]} 48. Bxa7 {[%clk 0:00:19.1]} 48... Ne3
{[%clk 0:00:02.3]} 49. Bc5 {[%clk 0:00:16.2]} 49... Nf5 {[%clk 0:00:02.4]} 50.
Bd3 {[%clk 0:00:15.4]} 50... Ne3 {[%clk 0:00:03]} 51. Kg3 {[%clk 0:00:15.3]}
51... Nd1 {[%clk 0:00:03.1]} 52. Bb4 {[%clk 0:00:12]} 52... Ne3 {[%clk
0:00:03.1]} 53. h5 {[%clk 0:00:10]} 53... Nd1 {[%clk 0:00:02.8]} 54. Bg6+ {[%clk
0:00:09.7]} 54... Kg8 {[%clk 0:00:02.5]} 55. Bd3 {[%clk 0:00:08.6]} 55... Kf7
{[%clk 0:00:02.2]} 56. Bg6+ {[%clk 0:00:08.4]} 56... Kg8 {[%clk 0:00:02.5]} 57.
Kf4 {[%clk 0:00:08.8]} 57... Nb2 {[%clk 0:00:02.3]} 58. Kg5 {[%clk 0:00:08.2]}
58... Nc4 {[%clk 0:00:02.5]} 59. Bc5 {[%clk 0:00:08.4]} 59... Nd2 {[%clk
0:00:01.9]} 60. Be8 {[%clk 0:00:07.7]} 60... Nf3+ {[%clk 0:00:02.3]} 61. Kg6
{[%clk 0:00:07.7]} 61... Nh4+ {[%clk 0:00:02.8]} 62. Kg5 {[%clk 0:00:08.3]}
62... Nf3+ {[%clk 0:00:03.5]} 63. Kg4 {[%clk 0:00:08.8]} 63... Nh2+ {[%clk
0:00:03.4]} 64. Kg3 {[%clk 0:00:07.5]} 64... Nf1+ {[%clk 0:00:04]} 65. Kf2
{[%clk 0:00:06.8]} 65... Nd2 {[%clk 0:00:04.5]} 66. Bg6 {[%clk 0:00:06.2]} 66...
Nc4 {[%clk 0:00:04.2]} 67. Ke2 {[%clk 0:00:05.7]} 67... Na5 {[%clk 0:00:04.5]}
68. Be8 {[%clk 0:00:04.7]} 68... Nc4 {[%clk 0:00:04.7]} 69. Kd3 {[%clk 0:00:03]}
69... Nb2+ {[%clk 0:00:04.6]} 70. Kc3 {[%clk 0:00:02.8]} 70... Nc4 {[%clk
0:00:05.2]} 71. Kb4 {[%clk 0:00:03.2]} 71... Ne3 {[%clk 0:00:03.4]} 72. Kb5
{[%clk 0:00:03.4]} 72... Nf5 {[%clk 0:00:02.5]} 73. Kc6 {[%clk 0:00:02.6]} 73...
Ne3 {[%clk 0:00:01.3]} 74. Kd6 {[%clk 0:00:02.4]} 74... Nc4+ {[%clk 0:00:02]}
75. Kxe6 {[%clk 0:00:02.7]} 1-0

[Event "Late-Titled-Tuesday-Blitz-March-19-2024"]
[Site "Chess.com"]
[Date "2024.03.19"]
[Round "11"]
[White "ameetghasi100"]
[Black "aistrel"]
[Result "1-0"]
[WhiteElo "2799"]
[BlackElo "2660"]
[TimeControl "180+1"]
[EndTime "16:06:32 PDT"]
[Termination "ameetghasi100 won on time"]

1. Nf3 {[%clk 0:02:59.2]} 1... d5 {[%clk 0:03:00.1]} 2. g3 {[%clk 0:02:59.2]}
2... Nc6 {[%clk 0:03:00.5]} 3. Bg2 {[%clk 0:02:59.7]} 3... e5 {[%clk 0:03:00.5]}
4. d3 {[%clk 0:03:00]} 4... Bf5 {[%clk 0:03:00.2]} 5. Nc3 {[%clk 0:02:57.1]}
5... d4 {[%clk 0:02:57.4]} 6. Ne4 {[%clk 0:02:56.8]} 6... Bxe4 {[%clk
0:02:56.8]} 7. dxe4 {[%clk 0:02:57.7]} 7... Bb4+ {[%clk 0:02:56.4]} 8. Nd2
{[%clk 0:02:58.1]} 8... h5 {[%clk 0:02:50.1]} 9. h4 {[%clk 0:02:57.8]} 9... Nf6
{[%clk 0:02:49]} 10. a3 {[%clk 0:02:57.9]} 10... Bxd2+ {[%clk 0:02:47.9]} 11.
Bxd2 {[%clk 0:02:58]} 11... Ng4 {[%clk 0:02:48.8]} 12. c3 {[%clk 0:02:47.9]}
12... Qd6 {[%clk 0:02:39.1]} 13. cxd4 {[%clk 0:02:48]} 13... Nxd4 {[%clk
0:02:39.5]} 14. e3 {[%clk 0:02:48]} 14... Nc6 {[%clk 0:02:32.2]} 15. Bc3 {[%clk
0:02:47.6]} 15... O-O-O {[%clk 0:02:29.7]} 16. Qxd6 {[%clk 0:02:47.2]} 16...
Rxd6 {[%clk 0:02:30.6]} 17. Ke2 {[%clk 0:02:38.7]} 17... b6 {[%clk 0:02:08.8]}
18. f3 {[%clk 0:02:20.3]} 18... Nf6 {[%clk 0:02:08.1]} 19. Rhc1 {[%clk
0:02:20.9]} 19... Kb7 {[%clk 0:02:07.1]} 20. b4 {[%clk 0:02:21.2]} 20... a6
{[%clk 0:02:02.8]} 21. a4 {[%clk 0:02:21.3]} 21... b5 {[%clk 0:02:02.3]} 22.
axb5 {[%clk 0:02:22.2]} 22... axb5 {[%clk 0:02:02.9]} 23. Kf2 {[%clk 0:02:22.5]}
23... Ra8 {[%clk 0:02:02.6]} 24. Rxa8 {[%clk 0:02:04]} 24... Kxa8 {[%clk
0:02:03.5]} 25. Bf1 {[%clk 0:02:04.6]} 25... Nd7 {[%clk 0:01:52.3]} 26. Bxb5
{[%clk 0:02:04.3]} 26... Kb7 {[%clk 0:01:51.7]} 27. Bc4 {[%clk 0:01:56.8]} 27...
f6 {[%clk 0:01:48.6]} 28. b5 {[%clk 0:01:38.6]} 28... Na7 {[%clk 0:01:35.9]} 29.
Bb4 {[%clk 0:01:25.3]} 29... Rb6 {[%clk 0:01:35.1]} 30. Ba5 {[%clk 0:01:17.6]}
30... Rxb5 {[%clk 0:01:29.5]} 31. Bxb5 {[%clk 0:01:16.6]} 31... Nxb5 {[%clk
0:01:30.4]} 32. Ke2 {[%clk 0:01:08.3]} 32... c5 {[%clk 0:01:29.9]} 33. Bd2
{[%clk 0:00:52.9]} 33... Nd6 {[%clk 0:01:26.7]} 34. Ra1 {[%clk 0:00:48.6]} 34...
Nb6 {[%clk 0:01:16.2]} 35. Ba5 {[%clk 0:00:45.5]} 35... Nd7 {[%clk 0:01:14.9]}
36. Bd8 {[%clk 0:00:41.8]} 36... Nb5 {[%clk 0:01:10.8]} 37. Kd3 {[%clk
0:00:38.9]} 37... Nd6 {[%clk 0:01:09.5]} 38. Be7 {[%clk 0:00:37]} 38... Nc8
{[%clk 0:01:08.3]} 39. Bd8 {[%clk 0:00:35]} 39... Nd6 {[%clk 0:01:08.9]} 40. Ba5
{[%clk 0:00:32.8]} 40... Kc6 {[%clk 0:01:07.6]} 41. Bd2 {[%clk 0:00:30.1]} 41...
Kb7 {[%clk 0:01:07.7]} 42. Kc2 {[%clk 0:00:26.3]} 42... Nc4 {[%clk 0:01:04]} 43.
Kc3 {[%clk 0:00:25.2]} 43... Nd6 {[%clk 0:01:04.2]} 44. Rg1 {[%clk 0:00:24.9]}
44... Nb5+ {[%clk 0:01:00.6]} 45. Kc4 {[%clk 0:00:22.5]} 45... Kc6 {[%clk
0:01:01.1]} 46. g4 {[%clk 0:00:21.4]} 46... Nd6+ {[%clk 0:01:00.3]} 47. Kc3
{[%clk 0:00:21.2]} 47... hxg4 {[%clk 0:00:46.2]} 48. Rxg4 {[%clk 0:00:22.1]}
48... Ne8 {[%clk 0:00:45.3]} 49. Rg1 {[%clk 0:00:21.8]} 49... Nb6 {[%clk
0:00:41.5]} 50. Kd3 {[%clk 0:00:20.8]} 50... Nd7 {[%clk 0:00:36.6]} 51. h5
{[%clk 0:00:19.1]} 51... Nb6 {[%clk 0:00:35.8]} 52. Ke2 {[%clk 0:00:19]} 52...
Nc4 {[%clk 0:00:31.7]} 53. Be1 {[%clk 0:00:19]} 53... Na3 {[%clk 0:00:27]} 54.
Bh4 {[%clk 0:00:17.8]} 54... c4 {[%clk 0:00:24.9]} 55. Ra1 {[%clk 0:00:14.3]}
55... Nb5 {[%clk 0:00:24.4]} 56. Be1 {[%clk 0:00:14]} 56... Kc5 {[%clk
0:00:20.6]} 57. Ra8 {[%clk 0:00:13]} 57... Ned6 {[%clk 0:00:20.9]} 58. Rg8
{[%clk 0:00:12.5]} 58... c3 {[%clk 0:00:20.6]} 59. Rxg7 {[%clk 0:00:08.7]} 59...
Nc4 {[%clk 0:00:15.8]} 60. Bxc3 {[%clk 0:00:06.5]} 60... Nxc3+ {[%clk
0:00:16.7]} 61. Kf2 {[%clk 0:00:06.5]} 61... Nd1+ {[%clk 0:00:16.8]} 62. Kg3
{[%clk 0:00:05.3]} 62... Ndxe3 {[%clk 0:00:14.6]} 63. h6 {[%clk 0:00:05.8]}
63... f5 {[%clk 0:00:13.9]} 64. h7 {[%clk 0:00:04.3]} 64... f4+ {[%clk
0:00:14.4]} 65. Kf2 {[%clk 0:00:04.3]} 65... Nb2 {[%clk 0:00:14.2]} 66. h8=Q
{[%clk 0:00:03.7]} 66... Nd3+ {[%clk 0:00:14.5]} 67. Ke2 {[%clk 0:00:04.2]}
67... Nb4 {[%clk 0:00:12.8]} 68. Rc7+ {[%clk 0:00:03.9]} 68... Kd4 {[%clk
0:00:13.6]} 69. Qd8+ {[%clk 0:00:04]} 69... Nbd5 {[%clk 0:00:14.5]} 70. exd5
{[%clk 0:00:04]} 70... Nxd5 {[%clk 0:00:15.4]} 71. Kf2 {[%clk 0:00:04.3]} 71...
e4 {[%clk 0:00:15.7]} 72. Rd7 {[%clk 0:00:04.7]} 72... e3+ {[%clk 0:00:16]} 73.
Ke1 {[%clk 0:00:05.4]} 73... Kd3 {[%clk 0:00:15.9]} 74. Rxd5+ {[%clk 0:00:05.9]}
74... Kc2 {[%clk 0:00:16.8]} 75. Rc5+ {[%clk 0:00:06.4]} 1-0

[Event "Late-Titled-Tuesday-Blitz-March-19-2024"]
[Site "Chess.com"]
[Date "2024.03.19"]
[Round "11"]
[White "rychessmaster1"]
[Black "DenLaz"]
[Result "0-1"]
[WhiteElo "2747"]
[BlackElo "3083"]
[TimeControl "180+1"]
[EndTime "16:06:39 PDT"]
[Termination "DenLaz won by checkmate"]

1. d4 {[%clk 0:03:00.9]} 1... Nf6 {[%clk 0:02:58.9]} 2. c4 {[%clk 0:03:01.2]}
2... e6 {[%clk 0:02:58.1]} 3. g3 {[%clk 0:03:01.4]} 3... d5 {[%clk 0:02:57.5]}
4. Bg2 {[%clk 0:03:01.8]} 4... Bb4+ {[%clk 0:02:58.1]} 5. Nd2 {[%clk 0:03:01.6]}
5... Be7 {[%clk 0:02:58.8]} 6. Ngf3 {[%clk 0:02:58.2]} 6... O-O {[%clk
0:02:59.3]} 7. O-O {[%clk 0:02:58]} 7... a5 {[%clk 0:03:00]} 8. Qc2 {[%clk
0:02:45.7]} 8... Nc6 {[%clk 0:02:59]} 9. Rd1 {[%clk 0:02:44.9]} 9... Nb4 {[%clk
0:02:55.4]} 10. Qb1 {[%clk 0:02:44.9]} 10... c6 {[%clk 0:02:54.9]} 11. e4 {[%clk
0:02:39.8]} 11... dxe4 {[%clk 0:02:53.6]} 12. Nxe4 {[%clk 0:02:40.7]} 12... a4
{[%clk 0:02:52.4]} 13. Bf4 {[%clk 0:02:34.5]} 13... Nxe4 {[%clk 0:02:49.6]} 14.
Qxe4 {[%clk 0:02:35.4]} 14... a3 {[%clk 0:02:50.3]} 15. b3 {[%clk 0:02:33.5]}
15... b6 {[%clk 0:02:47.3]} 16. Bd2 {[%clk 0:02:20.3]} 16... Bb7 {[%clk
0:02:37.4]} 17. Ng5 {[%clk 0:02:04.8]} 17... Bxg5 {[%clk 0:02:30.9]} 18. Bxb4
{[%clk 0:02:05.1]} 18... Re8 {[%clk 0:02:31.5]} 19. h4 {[%clk 0:01:56.4]} 19...
Bf6 {[%clk 0:02:30.5]} 20. Rac1 {[%clk 0:01:54.4]} 20... Qc7 {[%clk 0:02:29.4]}
21. c5 {[%clk 0:01:52.6]} 21... b5 {[%clk 0:02:26.7]} 22. Bd2 {[%clk 0:01:49.3]}
22... Rad8 {[%clk 0:02:22.9]} 23. Bf4 {[%clk 0:01:48.7]} 23... Qc8 {[%clk
0:02:22.8]} 24. Bd6 {[%clk 0:01:43.9]} 24... Rd7 {[%clk 0:02:17.1]} 25. b4
{[%clk 0:01:38.3]} 25... Be7 {[%clk 0:02:15.5]} 26. Bxe7 {[%clk 0:01:38.1]}
26... Rexe7 {[%clk 0:02:14.5]} 27. Qe3 {[%clk 0:01:28.6]} 27... Qa8 {[%clk
0:02:13.2]} 28. Qb3 {[%clk 0:01:29]} 28... Re8 {[%clk 0:02:08.6]} 29. Rc3 {[%clk
0:01:19.9]} 29... Qd8 {[%clk 0:02:01.8]} 30. Rcd3 {[%clk 0:01:17]} 30... Qf6
{[%clk 0:01:59.9]} 31. Qxa3 {[%clk 0:01:12.7]} 31... Red8 {[%clk 0:02:00.1]} 32.
Qb2 {[%clk 0:01:12.4]} 32... h6 {[%clk 0:01:58.3]} 33. a4 {[%clk 0:01:06.5]}
33... bxa4 {[%clk 0:01:43.2]} 34. b5 {[%clk 0:01:07]} 34... Rc8 {[%clk
0:01:22.1]} 35. bxc6 {[%clk 0:01:07.1]} 35... Bxc6 {[%clk 0:01:21.4]} 36. Bxc6
{[%clk 0:01:07.8]} 36... Rxc6 {[%clk 0:01:21.7]} 37. Qb5 {[%clk 0:01:08.4]}
37... Rcc7 {[%clk 0:01:11.8]} 38. Qxa4 {[%clk 0:00:57]} 38... Rd5 {[%clk
0:01:11.4]} 39. Ra3 {[%clk 0:00:43.4]} 39... g5 {[%clk 0:01:09.1]} 40. Qe8+
{[%clk 0:00:37.3]} 40... Kh7 {[%clk 0:00:59.2]} 41. Ra8 {[%clk 0:00:37.4]} 41...
Qg7 {[%clk 0:00:59.5]} 42. h5 {[%clk 0:00:30.9]} 42... g4 {[%clk 0:00:52.8]} 43.
c6 {[%clk 0:00:20.3]} 43... Rxh5 {[%clk 0:00:47.8]} 44. Rb1 {[%clk 0:00:20.6]}
44... Kg6 {[%clk 0:00:18.7]} 45. Rd8 {[%clk 0:00:16.9]} 45... Qf6 {[%clk
0:00:14.3]} 46. Qg8+ {[%clk 0:00:13.8]} 46... Qg7 {[%clk 0:00:14.6]} 47. Qxg7+
{[%clk 0:00:10.3]} 47... Kxg7 {[%clk 0:00:14.9]} 48. Rb6 {[%clk 0:00:08.9]}
48... Ra5 {[%clk 0:00:12.8]} 49. Rd6 {[%clk 0:00:09.6]} 49... Kf6 {[%clk
0:00:07.4]} 50. Rb7 {[%clk 0:00:09.6]} 50... Ra7 {[%clk 0:00:04.1]} 51. Rd7
{[%clk 0:00:09.4]} 51... Rcxb7 {[%clk 0:00:02.3]} 52. cxb7 {[%clk 0:00:09.2]}
52... Ra1+ {[%clk 0:00:03]} 53. Kg2 {[%clk 0:00:09.4]} 53... Rb1 {[%clk
0:00:03.9]} 54. f4 {[%clk 0:00:07.9]} 54... Rb2+ {[%clk 0:00:03.8]} 55. Kf1
{[%clk 0:00:08.2]} 55... Kg6 {[%clk 0:00:04.4]} 56. Ke1 {[%clk 0:00:05.4]} 56...
h5 {[%clk 0:00:04.9]} 57. Kf1 {[%clk 0:00:05.4]} 57... f6 {[%clk 0:00:04.7]} 58.
Kg1 {[%clk 0:00:05.1]} 58... Kf5 {[%clk 0:00:04.8]} 59. Re7 {[%clk 0:00:04.9]}
59... Ke4 {[%clk 0:00:03]} 60. Rxe6+ {[%clk 0:00:05.5]} 60... Kf3 {[%clk
0:00:03.6]} 61. Rc6 {[%clk 0:00:05.2]} 61... Kxg3 {[%clk 0:00:02.8]} 62. Rc3+
{[%clk 0:00:05.8]} 62... Kxf4 {[%clk 0:00:03.3]} 63. d5 {[%clk 0:00:06.5]} 63...
Rxb7 {[%clk 0:00:03.3]} 64. d6 {[%clk 0:00:07.2]} 64... Rd7 {[%clk 0:00:04]} 65.
Rd3 {[%clk 0:00:07.8]} 65... Ke5 {[%clk 0:00:04.6]} 66. Kg2 {[%clk 0:00:08]}
66... Rxd6 {[%clk 0:00:05.3]} 67. Re3+ {[%clk 0:00:08.7]} 67... Kf5 {[%clk
0:00:05.5]} 68. Ra3 {[%clk 0:00:09.1]} 68... Kg5 {[%clk 0:00:05.6]} 69. Ra5+
{[%clk 0:00:09.7]} 69... f5 {[%clk 0:00:06.3]} 70. Ra8 {[%clk 0:00:10.3]} 70...
h4 {[%clk 0:00:06.9]} 71. Kf2 {[%clk 0:00:11]} 71... Kf4 {[%clk 0:00:07.5]} 72.
Ra4+ {[%clk 0:00:10.8]} 72... Kg5 {[%clk 0:00:08]} 73. Ke3 {[%clk 0:00:11.3]}
73... Re6+ {[%clk 0:00:08.3]} 74. Kf2 {[%clk 0:00:11.9]} 74... Re4 {[%clk
0:00:08.7]} 75. Ra8 {[%clk 0:00:11.7]} 75... Kf4 {[%clk 0:00:09.4]} 76. Kg2
{[%clk 0:00:12.2]} 76... Re2+ {[%clk 0:00:09.2]} 77. Kh1 {[%clk 0:00:11.9]}
77... Kf3 {[%clk 0:00:09]} 78. Ra3+ {[%clk 0:00:11.2]} 78... Re3 {[%clk
0:00:09.6]} 79. Ra1 {[%clk 0:00:11.3]} 79... f4 {[%clk 0:00:10.1]} 80. Rg1
{[%clk 0:00:11.3]} 80... g3 {[%clk 0:00:10.2]} 81. Rf1+ {[%clk 0:00:11.4]} 81...
Kg4 {[%clk 0:00:10.8]} 82. Rd1 {[%clk 0:00:08.1]} 82... h3 {[%clk 0:00:11.4]}
83. Ra1 {[%clk 0:00:08.2]} 83... h2 {[%clk 0:00:11]} 84. Rf1 {[%clk 0:00:06.4]}
84... Kh3 {[%clk 0:00:10]} 85. Rf3 {[%clk 0:00:04.6]} 85... Re1+ {[%clk
0:00:09.9]} 86. Rf1 {[%clk 0:00:04.7]} 86... Rxf1# {[%clk 0:00:10.8]} 0-1

[Event "Late-Titled-Tuesday-Blitz-March-19-2024"]
[Site "Chess.com"]
[Date "2024.03.19"]
[Round "11"]
[White "ventdelest"]
[Black "norwaytoadog"]
[Result "0-1"]
[WhiteElo "2095"]
[BlackElo "2361"]
[TimeControl "180+1"]
[EndTime "16:06:40 PDT"]
[Termination "norwaytoadog won on time"]

1. e4 {[%clk 0:02:59]} 1... c5 {[%clk 0:02:59.4]} 2. Nf3 {[%clk 0:02:59]} 2...
Nc6 {[%clk 0:02:59.8]} 3. Bc4 {[%clk 0:02:51.8]} 3... e6 {[%clk 0:02:57.9]} 4.
Nc3 {[%clk 0:02:47.3]} 4... Nf6 {[%clk 0:02:55.3]} 5. d3 {[%clk 0:02:46.6]} 5...
a6 {[%clk 0:02:52.2]} 6. a3 {[%clk 0:02:45.3]} 6... Qc7 {[%clk 0:02:47.3]} 7.
Bg5 {[%clk 0:02:41.9]} 7... Be7 {[%clk 0:02:45.4]} 8. O-O {[%clk 0:02:41]} 8...
b5 {[%clk 0:02:43]} 9. Bb3 {[%clk 0:02:36.3]} 9... Bb7 {[%clk 0:02:38.5]} 10.
Re1 {[%clk 0:02:22.9]} 10... d6 {[%clk 0:02:34.9]} 11. h3 {[%clk 0:02:17.6]}
11... O-O {[%clk 0:02:27.5]} 12. Ne2 {[%clk 0:02:15.5]} 12... Rad8 {[%clk
0:02:17]} 13. Ng3 {[%clk 0:02:10.3]} 13... d5 {[%clk 0:02:12.7]} 14. exd5 {[%clk
0:02:01.6]} 14... Nxd5 {[%clk 0:02:08]} 15. Bxd5 {[%clk 0:01:47.1]} 15... Rxd5
{[%clk 0:02:00.4]} 16. Bxe7 {[%clk 0:01:42.2]} 16... Qxe7 {[%clk 0:01:53]} 17.
Qe2 {[%clk 0:01:39.9]} 17... Rfd8 {[%clk 0:01:46.9]} 18. Rad1 {[%clk 0:01:38.4]}
18... Qf6 {[%clk 0:01:45.2]} 19. b3 {[%clk 0:01:23.5]} 19... Nd4 {[%clk
0:01:20.5]} 20. Nxd4 {[%clk 0:01:17.4]} 20... cxd4 {[%clk 0:01:16.5]} 21. Ne4
{[%clk 0:01:14.9]} 21... Qg6 {[%clk 0:01:10.4]} 22. Qg4 {[%clk 0:01:07.5]} 22...
Rc8 {[%clk 0:01:03.3]} 23. Qxg6 {[%clk 0:01:04.4]} 23... hxg6 {[%clk 0:01:02.8]}
24. Re2 {[%clk 0:01:01.7]} 24... Re5 {[%clk 0:00:59.2]} 25. f4 {[%clk
0:00:55.6]} 25... Rd5 {[%clk 0:00:58.2]} 26. b4 {[%clk 0:00:50.9]} 26... Rc6
{[%clk 0:00:36.7]} 27. Nc5 {[%clk 0:00:48.6]} 27... Bc8 {[%clk 0:00:36.9]} 28.
Rde1 {[%clk 0:00:43.2]} 28... g5 {[%clk 0:00:35.3]} 29. fxg5 {[%clk 0:00:40.6]}
29... Rxg5 {[%clk 0:00:35.3]} 30. Re5 {[%clk 0:00:39.5]} 30... Rxe5 {[%clk
0:00:34.7]} 31. Rxe5 {[%clk 0:00:38.8]} 31... f6 {[%clk 0:00:35.2]} 32. Re4
{[%clk 0:00:35.5]} 32... e5 {[%clk 0:00:35.4]} 33. Re2 {[%clk 0:00:32.8]} 33...
Kf7 {[%clk 0:00:34.4]} 34. Kf2 {[%clk 0:00:32.2]} 34... Bf5 {[%clk 0:00:32.4]}
35. g4 {[%clk 0:00:31.8]} 35... Bc8 {[%clk 0:00:30.7]} 36. Kg3 {[%clk 0:00:32]}
36... Rc7 {[%clk 0:00:29.4]} 37. h4 {[%clk 0:00:30.6]} 37... a5 {[%clk
0:00:28.1]} 38. Re1 {[%clk 0:00:29.2]} 38... axb4 {[%clk 0:00:27.6]} 39. axb4
{[%clk 0:00:29.2]} 39... Ra7 {[%clk 0:00:27.8]} 40. Re2 {[%clk 0:00:28.3]} 40...
Ra1 {[%clk 0:00:27.5]} 41. g5 {[%clk 0:00:25.2]} 41... Kg6 {[%clk 0:00:23.3]}
42. gxf6 {[%clk 0:00:21.3]} 42... gxf6 {[%clk 0:00:23.4]} 43. Rf2 {[%clk
0:00:21.2]} 43... Rg1+ {[%clk 0:00:21.7]} 44. Kh2 {[%clk 0:00:20.5]} 44... Rg4
{[%clk 0:00:20.8]} 45. Ne4 {[%clk 0:00:16.9]} 45... Rxh4+ {[%clk 0:00:19.4]} 46.
Kg1 {[%clk 0:00:16.8]} 46... Rg4+ {[%clk 0:00:19]} 47. Kf1 {[%clk 0:00:16.3]}
47... f5 {[%clk 0:00:17.9]} 48. Nd6 {[%clk 0:00:15.4]} 48... Bd7 {[%clk
0:00:18.4]} 49. Ke1 {[%clk 0:00:14]} 49... Rh4 {[%clk 0:00:18.2]} 50. Kd2 {[%clk
0:00:13.3]} 50... Rh1 {[%clk 0:00:16.6]} 51. Rg2+ {[%clk 0:00:13.2]} 51... Kf6
{[%clk 0:00:16.6]} 52. Rf2 {[%clk 0:00:12.1]} 52... Rb1 {[%clk 0:00:15.2]} 53.
Nb7 {[%clk 0:00:10.5]} 53... Rxb4 {[%clk 0:00:13.5]} 54. Nc5 {[%clk 0:00:10.6]}
54... Be6 {[%clk 0:00:12.6]} 55. Ne4+ {[%clk 0:00:10.5]} 55... Ke7 {[%clk
0:00:12.1]} 56. Nc5 {[%clk 0:00:09.9]} 56... Kd6 {[%clk 0:00:11.5]} 57. Na6
{[%clk 0:00:09]} 57... Rb2 {[%clk 0:00:11]} 58. Rh2 {[%clk 0:00:07.4]} 58... Ra2
{[%clk 0:00:10]} 59. Nb8 {[%clk 0:00:07.3]} 59... b4 {[%clk 0:00:09.6]} 60. Kc1
{[%clk 0:00:04.6]} 60... Ra1+ {[%clk 0:00:03.5]} 61. Kb2 {[%clk 0:00:04.6]}
61... Ra8 {[%clk 0:00:03.6]} 62. Rh8 {[%clk 0:00:03.2]} 62... b3 {[%clk
0:00:03.1]} 63. Rd8+ {[%clk 0:00:03.5]} 63... Kc7 {[%clk 0:00:02.8]} 64. Nc6
{[%clk 0:00:03.8]} 64... Rxd8 {[%clk 0:00:02.6]} 65. Nxd8 {[%clk 0:00:01.6]}
65... Kxd8 {[%clk 0:00:03.1]} 0-1